fUST/lending_fUST_20240212
["ID","MTS","AMOUNT","RATE_DAILY","PERIOD"]
[313768117,1707701446934,-1797.45,0.00020756,2]
[313768118,1707701446944,-1620.66,0.00020756,2]
[313768119,1707701446952,-500.0,0.00020756,2]
[313768120,1707701446961,-151.0,0.00020766,2]
[313768121,1707701446970,-8682.59035338,0.000208,2]
[313768122,1707701446979,-151.0,0.00020805,2]
[313768123,1707701446988,-500.0,0.00020822,2]
[313768124,1707701446997,-365.92316609,0.00020822,2]
[313768125,1707701447007,-191.2672882,0.00020822,2]
[313768126,1707701447016,-500.0,0.00020822,2]
[313768127,1707701447025,-500.0,0.00020822,2]
[313768128,1707701447035,-500.0,0.00020822,2]
[313768129,1707701447044,-500.0,0.00020822,2]
[313768130,1707701447054,-500.0,0.00020822,2]
[313768131,1707701447063,-500.0,0.00020822,2]
[313768132,1707701447071,-500.0,0.00020822,2]
[313768133,1707701447080,-500.0,0.00020822,2]
[313768134,1707701447089,-505.40314075,0.00020822,2]
[313768135,1707701447098,-500.0,0.00020822,2]
[313768136,1707701447107,-500.0,0.00020822,2]
[313768137,1707701447116,-494.91026607,0.00020822,2]
[313768138,1707701447126,-500.0,0.00020822,2]
[313768139,1707701447136,-500.0,0.00020822,2]
[313768140,1707701447145,-250.0,0.00020822,2]
[313768141,1707701447154,-500.0,0.00020822,2]
[313768142,1707701447163,-159.27844208,0.00020822,2]
[313768143,1707701447172,-500.0,0.00020822,2]
[313768144,1707701447181,-500.0,0.00020822,2]
[313768145,1707701447190,-500.0,0.00020822,2]
[313768146,1707701447199,-250.0,0.00020822,2]
[313768147,1707701447208,-300.0,0.00020822,2]
[313768148,1707701447217,-326.55589937,0.00020822,2]
[313768149,1707701447226,-305.99392744,0.00020822,2]
[313768150,1707701447235,-270.48491904,0.00020822,2]
[313768151,1707701447244,-500.0,0.00020822,2]
[313768152,1707701447254,-500.0,0.00020822,2]
[313768153,1707701447263,-500.0,0.00020822,2]
[313768154,1707701447272,-443.66816914,0.00020822,2]
[313768155,1707701447282,-500.0,0.00020822,2]
[313768156,1707701447291,-500.0,0.00020822,2]
[313768157,1707701447301,-500.0,0.00020822,2]
[313768158,1707701447310,-500.0,0.00020822,2]
[313768159,1707701447319,-500.0,0.00020822,2]
[313768160,1707701447329,-223.23549555,0.00020822,2]
[313768161,1707701447338,-500.0,0.00020822,2]
[313768162,1707701447348,-500.0,0.00020822,2]
[313768163,1707701447357,-195.0,0.00020822,2]
[313768164,1707701447366,-500.0,0.00020822,2]
[313768165,1707701447376,-500.0,0.00020822,2]
[313768166,1707701447385,-500.0,0.00020822,2]
[313768167,1707701447394,-500.0,0.00020822,2]
[313768168,1707701447403,-500.0,0.00020822,2]
[313768169,1707701447412,-151.0,0.00020822,2]
[313768170,1707701447421,-500.0,0.00020842,2]
[313768171,1707701447430,-1000.0,0.00020867,2]
[313768172,1707701447439,-1000.0,0.00020867,2]
[313768173,1707701447451,-1000.0,0.00020867,2]
[313768174,1707701447460,-1000.0,0.00020867,2]
[313768175,1707701447469,-1000.0,0.00020867,2]
[313768176,1707701447479,-58643.76490767,0.000209,2]
[313768177,1707701447488,-151.0,0.000209,2]
[313768178,1707701447497,-1000.0,0.00020934,2]
[313768179,1707701447507,-1000.0,0.00020934,2]
[313768180,1707701447516,-1000.0,0.00020934,2]
[313768181,1707701447526,-1000.0,0.00020945,2]
[313768182,1707701447535,-200.079134,0.00020959,2]
[313768183,1707701447545,-3179.82,0.00020972,2]
[313768184,1707701447555,-500.0,0.00020978,2]
[313768185,1707701447564,-3830.25,0.00020979,2]
[313768186,1707701447573,-2519.76,0.0002098,2]
[313768187,1707701447583,-500.0,0.0002098,2]
[313768188,1707701447592,-500.0,0.0002098,2]
[313768189,1707701447601,-500.0,0.0002098,2]
[313768190,1707701447610,-500.0,0.0002098,2]
[313768191,1707701447619,-500.0,0.00020989,2]
[313768192,1707701447628,-596.66,0.00020989,2]
[313768193,1707701447637,-500.0,0.00020989,2]
[313768194,1707701447646,-500.0,0.00020989,2]
[313768195,1707701447656,-1136.05,0.00020989,2]
[313768196,1707701447665,-1800.05,0.00020989,2]
[313768197,1707701447674,-500.0,0.00020989,2]
[313768198,1707701447683,-500.0,0.00020989,2]
[313768199,1707701447692,-204.49391786,0.0002099,2]
[313768200,1707701447702,-500.0,0.0002099,2]
[313768201,1707701447710,-500.0,0.0002099,2]
[313768202,1707701447719,-454.64112763,0.0002099,2]
[313768203,1707701447728,-454.90726631,0.0002099,2]
[313768204,1707701447737,-500.0,0.0002099,2]
[313768205,1707701447747,-500.0,0.0002099,2]
[313768206,1707701447758,-500.0,0.0002099,2]
[313768207,1707701447767,-500.0,0.0002099,2]
[313768208,1707701447776,-500.0,0.0002099,2]
[313768209,1707701447786,-603.03864438,0.0002099,2]
[313768210,1707701447795,-450.73763295,0.0002099,2]
[313768211,1707701447804,-500.0,0.0002099,2]
[313768212,1707701447813,-500.0,0.0002099,2]
[313768213,1707701447821,-500.0,0.0002099,2]
[313768214,1707701447830,-500.0,0.0002099,2]
[313768215,1707701447840,-500.0,0.0002099,2]
[313768216,1707701447850,-500.0,0.0002099,2]
[313768217,1707701447858,-500.0,0.0002099,2]
[313768218,1707701447868,-500.0,0.0002099,2]
[313768219,1707701447877,-500.0,0.0002099,2]
[313768220,1707701447886,-500.0,0.0002099,2]
[313768221,1707701447895,-500.0,0.0002099,2]
[313768222,1707701447905,-500.0,0.0002099,2]
[313768223,1707701447913,-500.0,0.0002099,2]
[313768224,1707701447922,-500.0,0.0002099,2]
[313768225,1707701447932,-500.0,0.0002099,2]
[313768226,1707701447941,-205.41503445,0.0002099,2]
[313768227,1707701447951,-500.0,0.0002099,2]
[313768228,1707701447959,-500.0,0.0002099,2]
[313768229,1707701447969,-500.0,0.0002099,2]
[313768230,1707701447978,-500.0,0.0002099,2]
[313768231,1707701447988,-500.0,0.0002099,2]
[313768232,1707701447997,-350.1337524,0.0002099,2]
[313768233,1707701448005,-500.0,0.00020991,2]
[313768234,1707701448015,-500.0,0.00020991,2]
[313768235,1707701448024,-500.0,0.00020991,2]
[313768236,1707701448034,-578.32,0.00020991,2]
[313768237,1707701448044,-12122.57435439,0.00021,2]
[313768238,1707701448054,-403.0,0.00021,9]
[313768239,1707701448064,-151.0,0.00021,2]
[313768240,1707701448072,-253.06,0.0002103,2]
[313768241,1707701448082,-570.08,0.0002103,2]
[313768242,1707701448091,-500.0,0.0002103,2]
[313768243,1707701448100,-500.0,0.0002103,2]
[313768244,1707701448110,-500.0,0.0002103,2]
[313768245,1707701448119,-2807.89,0.0002103,2]
[313768246,1707701448129,-1797.45,0.0002103,2]
[313768247,1707701448139,-1620.66,0.0002103,2]
[313768248,1707701448149,-500.0,0.0002103,2]
[313768249,1707701448159,-1202.33881507,0.00021093,2]
[313768250,1707701448168,-620.00000002,0.00021141,2]
[313768251,1707701448177,-151.0,0.00021241,2]
[313768252,1707701448187,-3179.82,0.00021246,2]
[313768253,1707701448197,-257.09489708,0.00021252,2]
[313768254,1707701448207,-3830.25,0.00021253,2]
[313768255,1707701448216,-2519.76,0.00021254,2]
[313768256,1707701448225,-500.0,0.00021254,2]
[313768257,1707701448234,-630.72,0.00021254,2]
[313768258,1707701448243,-500.0,0.00021254,2]
[313768259,1707701448252,-500.0,0.00021254,2]
[313768260,1707701448261,-261.3,0.00021263,2]
[313768261,1707701448270,-500.0,0.00021263,2]
[313768262,1707701448279,-375.04,0.00021263,2]
[313768263,1707701448288,-1136.05,0.00021263,2]
[313768264,1707701448297,-1800.05,0.00021263,2]
[313768265,1707701448306,-500.0,0.00021263,2]
[313768266,1707701448315,-309.34306863,0.00021263,2]
[313768267,1707701448323,-151.0,0.00021265,2]
[313768268,1707701448332,-500.0,0.00021265,2]
[313768269,1707701448341,-500.0,0.00021265,2]
[313768270,1707701448350,-500.0,0.00021265,2]
[313768271,1707701448359,-500.0,0.00021304,2]
[313768272,1707701448368,-500.0,0.00021304,2]
[313768273,1707701448377,-500.0,0.00021304,2]
[313768274,1707701448386,-2807.89,0.00021304,2]
[313768275,1707701448395,-1797.45,0.00021304,2]
[313768276,1707701448404,-1620.66,0.00021304,2]
[313768277,1707701448414,-384.57422778,0.00021304,2]
[313768278,1707701448423,-3517.91695874,0.0002135,2]
[313768279,1707701448432,-750.0,0.000215,2]
[313768280,1707701448441,-3179.82,0.0002152,2]
[313768281,1707701448450,-3830.25,0.00021527,2]
[313768282,1707701448459,-750.0,0.00021527,2]
[313768283,1707701448468,-2519.76,0.00021528,2]
[313768284,1707701448478,-324.06,0.00021528,2]
[313768285,1707701448487,-500.0,0.00021528,2]
[313768286,1707701448496,-500.0,0.00021528,2]
[313768287,1707701448505,-500.0,0.00021537,2]
[313768288,1707701448514,-1136.05,0.00021537,2]
[313768289,1707701448523,-1800.05,0.00021537,2]
[313768290,1707701448532,-500.0,0.00021537,2]
[313768291,1707701448541,-500.0,0.00021539,2]
[313768292,1707701448550,-500.0,0.00021539,2]
[313768293,1707701448559,-500.0,0.00021539,2]
[313768294,1707701448568,-1000.0,0.00021554,2]
[313768295,1707701448577,-2287.23113409,0.00021554,2]
[313768296,1707701448586,-1000.0,0.00021554,2]
[313768297,1707701448595,-605.79432612,0.00021554,2]
[313768298,1707701448604,-1127.35880289,0.00021554,2]
[313768299,1707701448613,-700.0,0.00021554,2]
[313768300,1707701448623,-1000.0,0.00021554,2]
[313768301,1707701448632,-3238.45820114,0.00021554,2]
[313768302,1707701448641,-1000.0,0.00021554,2]
[313768303,1707701448651,-1000.0,0.00021554,2]
[313768304,1707701448660,-1000.0,0.00021554,2]
[313768305,1707701448669,-2416.49480162,0.00021554,2]
[313768306,1707701448678,-8627.44101603,0.00021554,2]
[313768307,1707701448686,-1000.0,0.00021554,2]
[313768308,1707701448696,-4466.57736276,0.00021554,2]
[313768309,1707701448705,-1000.0,0.00021554,2]
[313768310,1707701448714,-259.60851109,0.00021554,2]
[313768311,1707701448723,-1000.0,0.00021554,2]
[313768312,1707701448732,-944.40567931,0.00021554,2]
[313768313,1707701448741,-1000.0,0.00021554,2]
[313768314,1707701448754,-672.26094586,0.00021554,2]
[313768315,1707701448763,-475.39588487,0.00021554,2]
[313768316,1707701448771,-1000.0,0.00021554,2]
[313768317,1707701448781,-1000.0,0.00021554,2]
[313768318,1707701448790,-500.0,0.00021578,2]
[313768319,1707701448799,-500.0,0.00021578,2]
[313768320,1707701448808,-500.0,0.00021578,2]
[313768321,1707701448817,-2807.89,0.00021578,2]
[313768322,1707701448826,-1797.45,0.00021578,2]
[313768323,1707701448835,-1620.66,0.00021578,2]
[313768324,1707701448937,-151.0,0.00021677,2]
[313768325,1707701448947,-13347.00063573,0.00021734,2]
[313768394,1707702632121,-1032.83143889,0.00017924,3]
[313768395,1707702632132,-765.10793666,0.00017925,2]
[313768410,1707702638153,-275.97291418,0.00017925,2]
[313768412,1707702638162,-174.72291835,0.00017925,2]
[313768418,1707702638215,-1413.29450021,0.00017925,2]
[313768420,1707702638224,-250.0,0.00017936,2]
[313768422,1707702638233,-7178.4844679,0.00017937,2]
[313768424,1707702638242,-9914.1473807,0.0001814,2]
[313768426,1707702638251,-3475.2430413,0.00018216,2]
[313768428,1707702638260,-248.5097105,0.00018227,2]
[313768430,1707702638269,-1020.2055942,0.00018371,2]
[313768432,1707702638278,-154.8915759,0.00018889,3]
[313768434,1707702638287,-200.0,0.00019,2]
[313768436,1707702638296,-163.5730306,0.00019178,2]
[313768438,1707702638305,-556.78152204,0.0001942,2]
[313768440,1707702638314,-200.0,0.0001973,2]
[313768442,1707702638323,-200.0,0.000198,2]
[313768445,1707702638332,-374.80785566,0.00019834,2]
[313768447,1707702638341,-500.0,0.00019875,2]
[313768449,1707702638350,-154.87677594,0.00019881,2]
[313768451,1707702638358,-500.0,0.00019883,2]
[313768453,1707702638367,-500.0,0.00019883,2]
[313768454,1707702638376,-500.0,0.00019883,2]
[313768455,1707702638385,-808.21,0.00019883,2]
[313768456,1707702638393,-1279.65,0.00019883,2]
[313768457,1707702638402,-500.0,0.00019883,2]
[313768458,1707702638411,-500.0,0.00019884,2]
[313768459,1707702638420,-500.0,0.00019884,2]
[313768460,1707702638428,-500.0,0.00019884,2]
[313768461,1707702638437,-2263.36,0.00019892,2]
[313768462,1707702638446,-506.31167044,0.00019893,2]
[313768463,1707702638455,-587.27276985,0.00019999,2]
[313768567,1707703832336,-1007.36009066,0.0001885,2]
[313768610,1707703838359,-580.6573279,0.0001885,2]
[313768612,1707703838368,-1032.83143889,0.00018851,3]
[313768614,1707703838376,-1041.08085084,0.00018852,2]
[313768616,1707703838385,-371.18768136,0.000189,2]
[313768618,1707703838394,-500.0,0.00019883,2]
[313768620,1707703838403,-500.0,0.00019883,2]
[313768622,1707703838411,-500.0,0.00019883,2]
[313768623,1707703838420,-1150.58,0.00019892,2]
[313768625,1707703838429,-500.0,0.00019892,2]
[313768628,1707703838439,-500.0,0.00019998,2]
[313768630,1707703838448,-1580.60742486,0.00019999,2]
[313768632,1707703838458,-755.09186154,0.0002,2]
[313768657,1707703841545,-1244.90813846,0.0002,2]
[313768658,1707703841555,-6305.16520436,0.0002,2]
[313768659,1707703841564,-6989.72665718,0.0002,2]
[313768660,1707703841575,-346.12261377,0.0002,2]
[313768682,1707703846359,-342.36884967,0.0002,2]
[313768708,1707704065427,154.8915759,0.0002,60]
[313768709,1707704085428,154.8915759,0.0002,60]
[313768710,1707704101434,254.20244033,0.0002,60]
[313768824,1707705041853,-1588.01741856,0.00018852,2]
[313768825,1707705041863,-1041.08085084,0.00018853,2]
[313768826,1707705041872,-1032.83143889,0.00018854,3]
[313768827,1707705041882,-247.45845424,0.000189,2]
[313768828,1707705041893,-168.988891,0.00019178,2]
[313768829,1707705041904,-200.646612,0.00019965,3]
[313768830,1707705041914,-155.87347919,0.00019998,2]
[313768831,1707705041924,-500.0,0.00019999,2]
[313768832,1707705041933,-500.0,0.00019999,2]
[313768833,1707705041943,-500.0,0.00019999,2]
[313768834,1707705041952,-1790.68,0.00019999,2]
[313768835,1707705041961,-500.0,0.00019999,2]
[313768836,1707705041971,-354.06606391,0.00019999,2]
[313768837,1707705041980,-2695.91,0.00019999,2]
[313768838,1707705041991,-2169.05,0.00019999,2]
[313768839,1707705042000,-1995.91,0.00019999,2]
[313768840,1707705042010,-774.53,0.00019999,2]
[313768841,1707705042019,-1276.17,0.00019999,2]
[313768842,1707705042028,-1226.33,0.00019999,2]
[313768843,1707705042037,-1102.64,0.00019999,2]
[313768844,1707705042046,-500.0,0.00019999,2]
[313768845,1707705042056,-500.0,0.00019999,2]
[313768846,1707705042065,-2396.68775238,0.0002,2]
[313768847,1707705042075,-7950.64817706,0.0002,2]
[313768848,1707705042085,-200.0,0.0002,2]
[313768849,1707705042094,-6305.16520436,0.0002,2]
[313768850,1707705042103,-7115.57627573,0.0002,2]
[313768860,1707705043572,-432.82000006,0.0002,2]
[313768975,1707706234358,-709.15577422,0.00017959,2]
[313769017,1707706245181,-1032.83143889,0.00017958,3]
[313769018,1707706245191,-3.56475882,0.00017959,2]
[313769055,1707706245867,-328.3603178,0.00017959,2]
[313769057,1707706245876,-821.43357407,0.0001796,2]
[313769059,1707706245885,-154.8915759,0.00017998,3]
[313769060,1707706245894,-141.31453223,0.00018139,2]
[313769065,1707706245928,-73.83038477,0.00018139,2]
[313769067,1707706245937,-2421.62262618,0.00018155,2]
[313769070,1707706246164,-465.19676197,0.00018155,2]
[313769071,1707706246178,-9686.18782955,0.00018155,2]
[313769072,1707706246187,-174.5123848,0.00018265,2]
[313769074,1707706246196,-250.0,0.00018537,2]
[313769075,1707706246206,-776.78545569,0.00018899,2]
[313769076,1707706246216,-164.97230282,0.000189,2]
[313769077,1707706246226,-153.0,0.00019507,2]
[313769078,1707706246235,-172.56390801,0.00019899,2]
[313769079,1707706246247,-153.0000001,0.000199,2]
[313769080,1707706246257,-153.0,0.000199,2]
[313769081,1707706246266,-200.0,0.00019969,2]
[313769082,1707706246276,-2078.68,0.00019997,2]
[313769083,1707706246285,-20020.30261015,0.00019998,2]
[313769084,1707706246294,-526.50698084,0.00019998,2]
[313769085,1707706246304,-176.81870798,0.00019998,2]
[313769086,1707706246313,-1716.07,0.00019998,2]
[313769087,1707706246322,-500.0,0.00019998,2]
[313769088,1707706246332,-2583.59,0.00019998,2]
[313769089,1707706246342,-678.0828971,0.00019998,2]
[313769092,1707706246393,-1257.4271029,0.00019998,2]
[313769093,1707706246402,-1223.0,0.00019998,2]
[313769094,1707706246411,-500.0,0.00019998,2]
[313769095,1707706246420,-500.0,0.00019998,2]
[313769096,1707706246429,-1056.69,0.00019998,2]
[313769097,1707706246438,-742.26,0.00019998,2]
[313769098,1707706246447,-1210.9,0.00019998,2]
[313769099,1707706246456,-151.0,0.00019998,2]
[313769100,1707706246465,-219.28,0.00019998,2]
[313769101,1707706246474,-500.0,0.00019998,2]
[313769102,1707706246483,-500.0,0.00019998,2]
[313769104,1707706246492,-9163.67029065,0.00019999,2]
[313769106,1707706246502,-500.0,0.00019999,2]
[313769107,1707706246511,-500.0,0.00019999,2]
[313769108,1707706246520,-500.0,0.00019999,2]
[313769109,1707706246529,-500.0,0.00019999,2]
[313769110,1707706246538,-284.16951193,0.00019999,2]
[313769111,1707706246547,-500.0,0.00019999,2]
[313769113,1707706246556,-3092.19105223,0.0002,2]
[313769144,1707707434108,-154.87609912,0.00017998,3]
[313769146,1707707434118,-1041.08085084,0.00018422,2]
[313769148,1707707434127,-4845.0929442,0.00018423,2]
[313769149,1707707434137,-8646.585769,0.00018501,2]
[313769150,1707707434146,-1764.8312446,0.00018511,2]
[313769151,1707707434155,-1029.7841905,0.00018551,2]
[313769152,1707707434165,-150.0,0.000189,2]
[313769153,1707707434174,-153.7073365,0.00019479,2]
[313769154,1707707434183,-153.0,0.00019752,2]
[313769155,1707707434192,-153.0,0.000198,2]
[313769157,1707707434202,-153.0,0.000198,2]
[313769159,1707707434211,-153.0,0.000198,2]
[313769160,1707707434220,-172.56390799,0.000199,2]
[313769162,1707707434230,-2518.50103668,0.000199,2]
[313769294,1707707442920,-477.81316761,0.000199,2]
[313769302,1707707442976,-444.97209498,0.000199,2]
[313769304,1707707442988,-702.86571155,0.000199,2]
[313769306,1707707442998,-153.0,0.00019952,2]
[313769309,1707707443007,-446.67936056,0.00019989,2]
[313769310,1707707443017,-2774.6696653,0.0001999,3]
[313769466,1707708634354,-154.87609912,0.00017962,2]
[313769468,1707708634363,-1032.83143889,0.00017962,3]
[313769469,1707708634372,-622.87446981,0.00017963,2]
[313769471,1707708634383,-418.20638103,0.00017963,2]
[313769473,1707708634392,-483.31469903,0.00017997,2]
[313769520,1707708638244,-91.73117261,0.00017997,2]
[313769522,1707708638254,-150.0,0.000189,2]
[313769524,1707708638263,-623.8583826,0.00019032,2]
[313769526,1707708638272,-200.0,0.000199,2]
[313769528,1707708638281,-172.56390799,0.000199,2]
[313769530,1707708638292,-101.16053494,0.00019984,2]
[313769532,1707708638305,-519.03238419,0.00019984,2]
[313769534,1707708638314,-494.33438968,0.00019997,2]
[313769536,1707708638323,-500.0,0.00019997,2]
[313769538,1707708638332,-155.35311789,0.00019998,2]
[313769539,1707708638341,-500.0,0.00019998,2]
[313769540,1707708638351,-511.08103598,0.00019998,2]
[313769541,1707708638360,-500.0,0.00019998,2]
[313769542,1707708638369,-500.0,0.00019998,2]
[313769543,1707708638378,-1992.07,0.00019998,2]
[313769544,1707708638387,-500.0,0.00019998,2]
[313769545,1707708638396,-500.0,0.00019998,2]
[313769546,1707708638405,-506.77667453,0.00019999,2]
[313769547,1707708638414,-47.98859926,0.00019999,2]
[313769593,1707708641349,-455.69526914,0.00019999,2]
[313769594,1707708641451,-504.9584921,0.00019999,2]
[313769595,1707708641488,-172.46208727,0.00019999,2]
[313769596,1707708641498,-500.0,0.00019999,2]
[313769597,1707708641508,-507.76043197,0.00019999,2]
[313769598,1707708641518,-504.39567203,0.00019999,2]
[313769599,1707708641527,-636.10798938,0.00019999,2]
[313769600,1707708641537,-507.14906957,0.00019999,2]
[313769601,1707708641546,-318.12467459,0.00019999,2]
[313769645,1707708646142,-1041.08085084,0.00019998,2]
[313769646,1707708646153,-186.03285623,0.00019999,2]
[313769647,1707708646162,-319.51820485,0.00019999,2]
[313769648,1707708646171,-502.907632,0.00019999,2]
[313769649,1707708646179,-369.41556639,0.00019999,2]
[313769650,1707708646188,-415.5829232,0.00019999,2]
[313769651,1707708646197,-503.07411073,0.00019999,2]
[313769652,1707708646206,-500.0,0.00019999,2]
[313769653,1707708646215,-506.39298765,0.00019999,2]
[313769654,1707708646224,-504.36228492,0.00019999,2]
[313769655,1707708646234,-504.35827558,0.00019999,2]
[313769656,1707708646243,-505.72957769,0.00019999,2]
[313769657,1707708646252,-505.95093061,0.00019999,2]
[313769658,1707708646263,-506.19759254,0.00019999,2]
[313769659,1707708646272,-503.36529832,0.00019999,2]
[313769660,1707708646281,-180.65454935,0.00019999,2]
[313769661,1707708646290,-500.0,0.00019999,2]
[313769662,1707708646299,-500.0,0.00019999,2]
[313769663,1707708646308,-505.86106617,0.00019999,2]
[313769664,1707708646317,-539.83785674,0.00019999,2]
[313769665,1707708646326,-711.33,0.00019999,2]
[313769666,1707708646335,-508.68905845,0.00019999,2]
[313769667,1707708646344,-1160.45,0.00019999,2]
[313769668,1707708646353,-500.0,0.00019999,2]
[313769669,1707708646362,-505.38920021,0.00019999,2]
[313769670,1707708646371,-500.0,0.00019999,2]
[313769671,1707708646380,-500.0,0.00019999,2]
[313769672,1707708646390,-500.0,0.00019999,2]
[313769673,1707708646399,-500.0,0.00019999,2]
[313769674,1707708646409,-1854.86,0.00019999,2]
[313769675,1707708646418,-507.04283737,0.00019999,2]
[313769676,1707708646427,-1523.35,0.00019999,2]
[313769677,1707708646436,-1644.57,0.00019999,2]
[313769678,1707708646446,-470.60706926,0.00019999,2]
[313769679,1707708646467,-685.14293074,0.00019999,2]
[313769680,1707708646475,-151.0,0.00019999,2]
[313769681,1707708646485,-151.0,0.00019999,2]
[313769682,1707708646493,-104.15706926,0.00019999,2]
[313769742,1707709832225,-294.77721875,0.00017969,2]
[313769744,1707709832235,-500.0,0.0001797,2]
[313769746,1707709832244,-1041.08085084,0.0001797,2]
[313769748,1707709832255,-495.3087887,0.00017971,2]
[313769750,1707709832264,-154.87609912,0.00017998,3]
[313769752,1707709832273,-200.0,0.000196,2]
[313769754,1707709832282,-184.72209314,0.00019898,2]
[313769756,1707709832292,-205.99621803,0.00019986,2]
[313769758,1707709832302,-155.81240445,0.00019986,2]
[313769760,1707709832311,-155.8370454,0.00019987,2]
[313769762,1707709832320,-979.25961897,0.00019988,3]
[313769765,1707709832337,-1348.34555049,0.00019988,3]
[313769767,1707709832348,-2487.82431991,0.00019988,3]
[313769887,1707709840162,-508.70147972,0.00019988,2]
[313769888,1707709840171,-500.0,0.00019988,2]
[313769889,1707709840181,-681.69,0.00019988,2]
[313769890,1707709840190,-88.11193751,0.00019988,2]
[313769900,1707709841673,-1023.97806249,0.00019988,2]
[313769901,1707709841683,-1731.78728557,0.00019989,2]
[313769902,1707709841696,-13224.33453894,0.00019989,2]
[313769903,1707709841705,-378.47679589,0.00019996,2]
[313769904,1707709841714,-643.77111633,0.00019996,2]
[313769905,1707709841724,-500.0,0.00019996,2]
[313769906,1707709841734,-1777.58,0.00019996,2]
[313769907,1707709841744,-1459.87,0.00019996,2]
[313769908,1707709841753,-1107.59,0.00019996,2]
[313769909,1707709841763,-1909.06,0.00019996,2]
[313769910,1707709841772,-821.00768788,0.00019997,2]
[313769911,1707709841782,-1587.47869536,0.00019997,2]
[313769912,1707709841792,-1576.04,0.00019997,2]
[313769913,1707709841802,-2471.6,0.00019997,2]
[313769914,1707709841811,-151.0,0.00019997,2]
[313769915,1707709841821,-151.0,0.00019997,2]
[313769916,1707709841830,-500.0,0.00019997,2]
[313769917,1707709841840,-500.0,0.00019997,2]
[313769918,1707709841849,-542.18144347,0.00019997,2]
[313769919,1707709841858,-500.70725794,0.00019998,3]
[313769920,1707709841868,-179.85582607,0.00019998,2]
[313769921,1707709841878,-1768.56445894,0.00019998,2]
[313769922,1707709841887,-156.25248221,0.00019998,2]
[313769923,1707709841897,-19926.02124891,0.00019998,2]
[313769924,1707709841906,-509.76978591,0.00019998,2]
[313769925,1707709841916,-1112.76934352,0.00019998,2]
[313769926,1707709841963,-503.01188397,0.00019998,2]
[313769946,1707709843363,-7985.39,0.00019989,3]
[313769947,1707709843373,-4299.33543434,0.00019998,2]
[313769948,1707709843383,-2419.42067196,0.00019998,2]
[313769949,1707709843393,-611.59803422,0.00019998,2]
[313769950,1707709843402,-1703.29133917,0.00019998,2]
[313769951,1707709843412,-233.57239874,0.00019998,2]
[313769952,1707709843421,-1.67769241,0.00019998,2]
[313769953,1707709843434,-500.9039787,0.00019998,2]
[313769954,1707709843443,-152.82543227,0.00019998,2]
[313769955,1707709843453,-151.0,0.00019998,2]
[313769956,1707709843462,-151.0,0.00019998,2]
[313769957,1707709843471,-500.0,0.00019998,2]
[313769958,1707709843480,-200.0,0.00019999,2]
[313769959,1707709843489,-164.74675956,0.00019999,2]
[313769960,1707709843498,-500.0,0.00019999,2]
[313769961,1707709843508,-500.0,0.00019999,2]
[313769962,1707709843517,-500.0,0.00019999,2]
[313769963,1707709843527,-5847.12446405,0.00019999,2]
[313769964,1707709843544,-67.60030915,0.00019999,2]
[313769965,1707709843553,-151.0,0.00019999,2]
[313769966,1707709843562,-237.96109096,0.00019999,2]
[313769967,1707709843574,-262.03890904,0.00019999,2]
[313769968,1707709843583,-500.0,0.00019999,2]
[313769969,1707709843593,-865.71109096,0.0002,2]
[313769970,1707709843604,-416.75595341,0.0002,2]
[313769971,1707709843616,-740.65520571,0.0002,2]
[313770000,1707711004219,10000.0,0.000155,2]
[313770021,1707711032537,-154.87609912,0.00017955,2]